fUST/lending_fUST_20260123
["ID","MTS","AMOUNT","RATE_DAILY","PERIOD"]
[403118094,1769175040056,-150.0,0.00013544,2]
[403118095,1769175040065,-153.0,0.00013562,2]
[403118096,1769175040075,-1126.977535,0.00013699,2]
[403118097,1769175040085,-500.0,0.00013699,2]
[403118098,1769175040094,-500.0,0.00013699,2]
[403118099,1769175040103,-500.0,0.00013699,2]
[403118100,1769175040112,-500.0,0.00013699,2]
[403118101,1769175040121,-500.0,0.00013699,2]
[403118102,1769175040130,-382.4297127,0.00013699,2]
[403118103,1769175040139,-371.60531761,0.00013699,2]
[403118104,1769175040148,-668.88957169,0.00013699,2]
[403118105,1769175040157,-241.02742566,0.00013699,2]
[403118106,1769175040167,-964.10970265,0.00013699,2]
[403118107,1769175040177,-1835.31902837,0.00013699,2]
[403118108,1769175040349,-333.9278026,0.00013699,2]
[403118109,1769175040359,-539.19931538,0.00013699,2]
[403118110,1769175040368,-970.55876768,0.00013699,2]
[403118111,1769175040378,-192.26919879,0.00013699,2]
[403118112,1769175040388,-346.08455782,0.00013699,2]
[403118113,1769175040400,-1000.0,0.00013821,2]
[403118114,1769175040410,-1000.0,0.00013821,2]
[403118115,1769175040420,-153.0,0.00013918,2]
[403118116,1769175040429,-412.13102579,0.00013935,2]
[403118117,1769175040439,-1000.0,0.00014247,2]
[403118118,1769175040448,-334.84655742,0.00014247,2]
[403118119,1769175040457,-923.34355094,0.00014247,2]
[403118120,1769175040468,-1000.0,0.00014247,2]
[403118121,1769175040478,-151.0,0.00014247,2]
[403118122,1769175040488,-600.74773867,0.00014248,2]
[403118123,1769175040497,-1269.08595777,0.00014314,3]
[403118124,1769175040506,-1500.0,0.00014368,2]
[403118125,1769175040515,-878.64038774,0.00014368,2]
[403118126,1769175040524,-419.15023469,0.00014447,2]
[403118127,1769175040534,-3528.1208593,0.00014595,2]
[403118128,1769175040544,-500.0,0.00014598,2]
[403118129,1769175040553,-500.0,0.00014598,2]
[403118130,1769175040562,-2380.41992831,0.00014601,2]
[403118167,1769175064535,10000.01,0.000119,2]
[403118168,1769175064564,10000.01,0.000119,2]
[403118169,1769175064591,10000.01,0.000119,2]
[403118170,1769175064618,10000.01,0.000119,2]
[403118171,1769175064644,10000.01,0.000119,2]
[403118172,1769175064671,10000.01,0.000119,2]
[403118173,1769175064697,6307.13499649,0.000119,2]
[403118193,1769175249145,3692.87500351,0.00011939,2]
[403118194,1769175249168,1307.12499649,0.00011939,2]
[403118195,1769175271763,5000.0,0.00011939,2]
[403118201,1769175294042,5000.0,0.00012105,2]
[403118203,1769175316942,5000.0,0.00012105,2]
[403118205,1769175327404,-207.80949354,0.00012105,2]
[403118206,1769175327436,-244.05,0.000122,2]
[403118207,1769175339350,5000.0,0.000122,2]
[403118210,1769175375553,-5000.0,0.00012205,2]
[403118211,1769175383899,0.01,0.00012205,2]
[403118212,1769175383924,4999.99,0.00012205,2]
[403118215,1769175425247,-351.83077446,0.00012204,2]
[403118217,1769175447753,820.51955747,0.000104,2]
[403118223,1769175662852,-5000.0,0.00012202,2]
[403118228,1769175696047,-150.0,0.0001208,2]
[403118229,1769175696076,-150.0,0.0001208,2]
[403118230,1769175696105,-150.0,0.0001208,2]
[403118231,1769175696133,-150.0,0.0001208,2]
[403118232,1769175696164,-150.0,0.0001208,2]
[403118233,1769175712183,-150.0,0.00012217,2]
[403118234,1769175712213,-150.53438118,0.00012217,2]
[403118237,1769175747277,170.7390773,0.00011365,2]
[403118238,1769175748284,500.0,0.000104,2]
[403118239,1769175748767,500.0,0.000104,2]
[403118240,1769175750296,858.96088506,0.000104,2]
[403118248,1769176066889,-150.0,0.0001208,2]
[403118302,1769176231722,-150.0,0.00012217,2]
[403118303,1769176231732,-592.0,0.00012217,2]
[403118305,1769176231741,-202.32,0.000123,2]
[403118306,1769176231750,-281.40073077,0.00012311,2]
[403118307,1769176231759,-300.0,0.00012321,2]
[403118308,1769176231768,-300.0,0.00012321,2]
[403118309,1769176231777,-300.0,0.00012321,2]
[403118310,1769176231786,-300.0,0.00012321,2]
[403118311,1769176231796,-1200.0,0.00012321,2]
[403118312,1769176231807,-500.0,0.00012322,2]
[403118313,1769176231816,-500.0,0.00012322,2]
[403118314,1769176231826,-500.0,0.00012322,2]
[403118315,1769176231836,-445.40513706,0.00012322,2]
[403118317,1769176231847,-500.0,0.00012322,2]
[403118319,1769176231856,-500.0,0.00012322,2]
[403118320,1769176231865,-500.0,0.00012322,2]
[403118321,1769176231876,-500.0,0.00012322,2]
[403118322,1769176231885,-500.0,0.00012322,2]
[403118323,1769176231894,-500.0,0.00012322,2]
[403118324,1769176231903,-500.0,0.00012322,2]
[403118325,1769176231914,-500.0,0.00012322,2]
[403118326,1769176231924,-500.0,0.00012322,2]
[403118327,1769176231933,-192.39720087,0.00012322,2]
[403118328,1769176231943,-500.0,0.00012322,2]
[403118329,1769176231952,-500.0,0.00012322,2]
[403118330,1769176231962,-500.0,0.00012322,2]
[403118331,1769176231971,-500.0,0.00012322,2]
[403118332,1769176231981,-266.25453486,0.00012322,2]
[403118333,1769176231990,-500.0,0.00012322,2]
[403118334,1769176231999,-500.0,0.00012322,2]
[403118335,1769176232008,-500.0,0.00012322,2]
[403118336,1769176232017,-500.0,0.00012322,2]
[403118337,1769176232026,-605.62357643,0.00012322,2]
[403118338,1769176232036,-500.0,0.00012322,2]
[403118339,1769176232045,-500.0,0.00012322,2]
[403118340,1769176232055,-300.0,0.00012322,2]
[403118341,1769176232064,-500.0,0.00012322,2]
[403118342,1769176232073,-344.570408,0.00012322,2]
[403118343,1769176232082,-500.0,0.00012322,2]
[403118344,1769176232092,-500.0,0.00012322,2]
[403118345,1769176232101,-500.0,0.00012322,2]
[403118346,1769176232110,-500.0,0.00012322,2]
[403118347,1769176232120,-500.0,0.00012322,2]
[403118348,1769176232129,-500.0,0.00012322,2]
[403118349,1769176232138,-500.0,0.00012322,2]
[403118350,1769176232147,-500.0,0.00012322,2]
[403118351,1769176232156,-500.0,0.00012322,2]
[403118352,1769176232165,-500.0,0.00012322,2]
[403118353,1769176232174,-500.0,0.00012322,2]
[403118354,1769176232183,-500.0,0.00012322,2]
[403118355,1769176232192,-500.0,0.00012322,2]
[403118356,1769176232201,-500.0,0.00012322,2]
[403118357,1769176232210,-500.0,0.00012322,2]
[403118358,1769176232220,-250.00000001,0.00012322,2]
[403118359,1769176232230,-500.0,0.00012322,2]
[403118360,1769176232239,-500.0,0.00012322,2]
[403118361,1769176232249,-500.0,0.00012322,2]
[403118362,1769176232258,-500.0,0.00012322,2]
[403118363,1769176232267,-500.0,0.00012322,2]
[403118364,1769176232276,-500.0,0.00012322,2]
[403118365,1769176232285,-500.0,0.00012322,2]
[403118366,1769176232294,-500.0,0.00012322,2]
[403118367,1769176232303,-500.0,0.00012322,2]
[403118368,1769176232312,-500.0,0.00012322,2]
[403118369,1769176232321,-500.0,0.00012322,2]
[403118370,1769176232330,-500.0,0.00012322,2]
[403118371,1769176232340,-500.0,0.00012322,2]
[403118372,1769176232349,-500.0,0.00012322,2]
[403118373,1769176232357,-500.0,0.00012322,2]
[403118374,1769176232377,-500.0,0.00012322,2]
[403118375,1769176232386,-500.0,0.00012322,2]
[403118376,1769176232395,-500.0,0.00012322,2]
[403118377,1769176232404,-500.0,0.00012322,2]
[403118378,1769176232413,-500.0,0.00012322,2]
[403118379,1769176232422,-214.61786685,0.00012322,2]
[403118380,1769176232431,-500.0,0.00012322,2]
[403118381,1769176232440,-500.0,0.00012322,2]
[403118382,1769176232449,-500.0,0.00012322,2]
[403118383,1769176232457,-500.0,0.00012322,2]
[403118384,1769176232466,-500.0,0.00012322,2]
[403118385,1769176232474,-500.0,0.00012322,2]
[403118386,1769176232483,-500.0,0.00012322,2]
[403118387,1769176232492,-500.0,0.00012322,2]
[403118388,1769176232500,-500.0,0.00012322,2]
[403118389,1769176232508,-500.0,0.00012322,2]
[403118390,1769176232518,-500.0,0.00012322,2]
[403118391,1769176232526,-500.0,0.00012322,2]
[403118392,1769176232536,-500.0,0.00012322,2]
[403118393,1769176232544,-500.0,0.00012322,2]
[403118394,1769176232553,-500.0,0.00012322,2]
[403118395,1769176232561,-500.0,0.00012322,2]
[403118396,1769176232570,-500.0,0.00012322,2]
[403118397,1769176232579,-500.0,0.00012322,2]
[403118398,1769176232587,-617.15401018,0.00012322,2]
[403118399,1769176232595,-500.0,0.00012322,2]
[403118400,1769176232605,-500.0,0.00012322,2]
[403118401,1769176232614,-500.0,0.00012322,2]
[403118402,1769176232624,-500.0,0.00012322,2]
[403118403,1769176232633,-500.0,0.00012322,2]
[403118404,1769176232643,-300.0,0.00012322,2]
[403118405,1769176232652,-50000.0,0.00012323,2]
[403118406,1769176232662,-286.5314506,0.00012325,2]
[403118407,1769176232671,-588.55,0.00012329,2]
[403118408,1769176232680,-786.82,0.00012329,2]
[403118409,1769176232690,-655.69,0.00012329,2]
[403118410,1769176232699,-546.4,0.00012329,2]
[403118411,1769176232708,-455.34,0.00012329,2]
[403118412,1769176232718,-200.0,0.00012354,2]
[403118413,1769176232727,-54275.01986693,0.00012474,2]
[403118414,1769176232745,-988.57473205,0.00012474,2]
[403118415,1769176232755,-1543.16857932,0.00012474,2]
[403118612,1769176243039,-250.95500002,0.00012329,2]
[403118619,1769176245965,-128.49499998,0.00012329,2]
[403118620,1769176245975,-300.0,0.00012574,2]
[403118621,1769176245984,-300.0,0.00012574,2]
[403118622,1769176245993,-159.60433892,0.00012574,2]
[403118623,1769176246005,-140.39566108,0.00012574,2]
[403118624,1769176246015,-300.0,0.00012574,2]
[403118625,1769176246024,-300.0,0.00012574,2]
[403118626,1769176246034,-300.0,0.00012574,2]
[403118627,1769176246044,-300.0,0.00012574,2]
[403118628,1769176246053,-300.0,0.00012574,2]
[403118629,1769176246062,-300.0,0.00012574,2]
[403118630,1769176246072,-300.0,0.00012574,2]
[403118631,1769176246081,-300.0,0.00012574,2]
[403118632,1769176246090,-300.0,0.00012574,2]
[403118633,1769176246099,-300.0,0.00012574,2]
[403118634,1769176246108,-300.0,0.00012574,2]
[403118635,1769176246118,-300.0,0.00012574,2]
[403118636,1769176246127,-168.0,0.00012729,2]
[403118637,1769176246136,-168.0,0.00012765,2]
[403118638,1769176246145,-168.0,0.00012821,2]
[403118639,1769176246155,-600.0,0.00012824,2]
[403118640,1769176246164,-168.0,0.00012862,2]
[403118641,1769176246174,-265.457718,0.00012958,2]
[403118642,1769176246183,-168.0,0.00012977,2]
[403118643,1769176246192,-461.67526835,0.00013021,2]
[403118644,1769176246202,-27944.93170599,0.00013021,2]
[403118645,1769176246211,-2487.15318209,0.00013021,2]
[403118646,1769176246220,-187.78006525,0.00013021,2]
[403118647,1769176246229,-194.72792766,0.00013021,2]
[403118648,1769176246239,-201.93286099,0.00013021,2]
[403118649,1769176246248,-209.40437684,0.00013021,2]
[403118650,1769176246257,-217.15233878,0.00013021,2]
[403118651,1769176246266,-225.18697532,0.00013021,2]
[403118652,1769176246275,-233.51889341,0.00013021,2]
[403118653,1769176246284,-242.15909246,0.00013021,2]
[403118654,1769176246293,-251.11897888,0.00013021,2]
[403118655,1769176246303,-260.4103811,0.00013021,2]
[403118656,1769176246312,-270.0455652,0.00013021,2]
[403118657,1769176246321,-280.03725112,0.00013021,2]
[403118658,1769176246331,-290.39862941,0.00013021,2]
[403118659,1769176246340,-372.38154674,0.00013021,2]
[403118660,1769176246349,-659.8720089,0.00013123,2]
[403118661,1769176246359,-305.4129056,0.00013123,2]
[403118662,1769176246368,-305.4129056,0.00013123,2]
[403118663,1769176246378,-603.3135026,0.00013123,2]
[403118664,1769176246387,-168.0,0.0001314,2]
[403118665,1769176246397,-168.0,0.00013226,2]
[403118666,1769176246405,-2149.0,0.00013227,2]
[403118667,1769176246415,-1368.0,0.00013227,2]
[403118668,1769176246425,-629.0,0.00013227,2]
[403118669,1769176246434,-500.0,0.00013273,2]
[403118670,1769176246443,-500.0,0.00013273,2]
[403118671,1769176246452,-500.0,0.00013273,2]
[403118672,1769176246462,-500.0,0.00013273,2]
[403118673,1769176246472,-414.0,0.00013521,2]
[403118674,1769176246481,-300.0,0.00013521,2]
[403118675,1769176246490,-420.0,0.00013521,2]
[403118676,1769176246499,-1680.0,0.00013553,2]
[403118677,1769176246509,-2579.17784983,0.00013569,2]
[403118678,1769176246519,-168.0,0.0001358,2]
[403118679,1769176246528,-168.0,0.00013637,2]
[403118680,1769176246537,-297.17221789,0.00013662,2]
[403118681,1769176246547,-300.0,0.00013673,2]
[403118682,1769176246557,-234.01413472,0.00013698,2]
[403118683,1769176246567,-500.0,0.00013698,2]
[403118684,1769176246576,-288.0993389,0.00013698,2]
[403118685,1769176246586,-1000.0,0.00013699,2]
[403118686,1769176246596,-500.0,0.00013699,2]
[403118687,1769176246605,-500.0,0.00013699,2]
[403118688,1769176246615,-500.0,0.00013699,2]
[403118689,1769176246624,-500.0,0.00013699,2]
[403118690,1769176246634,-17013.3638476,0.00013733,2]
[403118691,1769176246644,-154.50659798,0.00013762,2]
[403118692,1769176246654,-278.11187637,0.00013762,2]
[403118693,1769176246663,-589.59566266,0.00013821,2]
[403118694,1769176246672,-500.0,0.00013821,2]
[403118695,1769176246682,-1000.0,0.00013821,2]
[403118696,1769176246691,-710.88541207,0.00013821,2]
[403118697,1769176246701,-168.0,0.00013879,2]
[403118698,1769176246710,-391.0960095,0.00013918,2]
[403118699,1769176246722,-4366.6967452,0.00013918,2]
[403118700,1769176246731,-305.4129056,0.00013945,2]
[403118701,1769176246741,-168.0,0.00014006,2]
[403118702,1769176246750,-720.0,0.00014107,2]
[403118703,1769176246760,-709.76391763,0.0001411,3]
[403118704,1769176246769,-359.81436878,0.00014117,2]
[403118705,1769176246778,-1000.0,0.00014247,2]
[403118706,1769176246788,-952.20987354,0.00014247,2]
[403118707,1769176246797,-1000.0,0.00014247,2]
[403118708,1769176246806,-332.05286231,0.00014311,2]
[403118709,1769176246816,-1500.0,0.00014368,2]
[403118710,1769176246825,-554.69624424,0.000147,2]
[403118711,1769176246835,-1500.0,0.00014795,2]
[403118712,1769176246847,-1500.0,0.00014795,2]
[403118713,1769176246856,-587.0,0.00014838,2]
[403118714,1769176246865,-766.0,0.00014908,2]
[403118715,1769176246875,-2000.0,0.00014916,2]
[403118716,1769176246884,-138604.64867277,0.00015,2]
[403118717,1769176246894,-2260.32477162,0.00015,2]
[403118718,1769176246903,-330.895757,0.00015068,2]
[403118719,1769176246914,-297.17221788,0.00015222,2]
[403118720,1769176246925,-230185.82490896,0.00015236,2]
[403118721,1769176246934,-500.0,0.00015342,2]
[403118722,1769176246943,-2000.0,0.00015342,2]
[403118723,1769176246953,-203.38157924,0.00015384,3]
[403118724,1769176246962,-151.0,0.000154,2]
[403118725,1769176246971,-26887.41009434,0.000154,4]
[403118726,1769176246983,-22363.39570099,0.000154,4]
[403118730,1769176284011,1957.5946098,0.00011416,2]
[403118735,1769176306299,300.0,0.00011326,2]
[403118752,1769176408813,-976.80620446,0.00012197,2]
[403118753,1769176408893,-5638.2686001,0.00012223,2]
[403118754,1769176417891,-10000.01,0.00012223,2]
[403118755,1769176418117,-10000.01,0.00012223,2]
[403118756,1769176418413,-10000.01,0.00012223,2]
[403118757,1769176424066,-10000.01,0.00012223,2]
[403118758,1769176439876,-5000.0,0.0001198,2]
[403118785,1769176618841,0.01,0.0001198,2]
[403118786,1769176618865,4999.99,0.0001198,2]
[403118791,1769176641693,1665.35803913,0.0001198,2]
[403118807,1769176787313,185.0,0.000154,120]
[403118810,1769176819516,3334.66196087,0.0001198,2]
[403118811,1769176819541,162.09756815,0.0001198,2]
[403118812,1769176827512,4353.17,0.0001198,2]
[403118815,1769176852732,-165.16911872,0.00012098,2]
[403118816,1769176852744,-425.83088128,0.00012098,2]
[403118817,1769176852754,-165.16911872,0.00012159,2]
[403118818,1769176878373,756.16911872,0.0001198,2]
[403118821,1769176901740,4728.57331313,0.0001198,2]
[403118822,1769176901767,271.42668687,0.0001198,2]
[403118824,1769176923823,4981.78122877,0.0001198,2]
[403118846,1769177137618,3552.4227371,0.00011218,2]
[403118856,1769177394245,204.9205364,0.0001128,2]
[403118887,1769177431948,-592.0,0.00012193,2]
[403118888,1769177431959,-272.70456003,0.00012193,2]
[403118889,1769177431968,-143.55011443,0.00012214,2]
[403118894,1769177438156,-156.44988557,0.00012214,2]
[403118895,1769177438166,-300.0,0.00012214,2]
[403118896,1769177438175,-300.0,0.00012214,2]
[403118897,1769177438185,-281.0,0.00012214,2]
[403118898,1769177438195,-300.0,0.00012214,2]
[403118899,1769177438204,-1200.0,0.00012214,2]
[403118900,1769177438216,-40840.98082728,0.00012215,2]
[403118901,1769177438230,-495.3275474,0.00012215,2]
[403118902,1769177438239,-500.0,0.00012215,2]
[403118903,1769177438249,-500.0,0.00012215,2]
[403118904,1769177438259,-500.0,0.00012215,2]
[403118905,1769177438268,-500.0,0.00012215,2]
[403118906,1769177438278,-500.0,0.00012215,2]
[403118907,1769177438287,-300.86568785,0.00012215,2]
[403118908,1769177438298,-500.0,0.00012215,2]
[403118909,1769177438308,-500.0,0.00012215,2]
[403118910,1769177438317,-500.0,0.00012215,2]
[403118911,1769177438327,-487.37583393,0.00012215,2]
[403118912,1769177438336,-500.0,0.00012215,2]
[403118913,1769177438346,-500.0,0.00012215,2]
[403118914,1769177438355,-500.0,0.00012215,2]
[403118915,1769177438365,-500.0,0.00012215,2]
[403118916,1769177438374,-286.51130257,0.00012215,2]
[403118917,1769177438383,-500.0,0.00012215,2]
[403118918,1769177438393,-500.0,0.00012215,2]
[403118919,1769177438402,-500.0,0.00012215,2]
[403118920,1769177438412,-500.0,0.00012215,2]
[403118921,1769177438421,-500.0,0.00012215,2]
[403118922,1769177438431,-560.45671942,0.00012215,2]
[403118923,1769177438440,-500.0,0.00012215,2]
[403118924,1769177438450,-500.0,0.00012215,2]
[403118925,1769177438459,-484.4570408,0.00012215,2]
[403118926,1769177438469,-500.0,0.00012215,2]
[403118927,1769177438478,-108.6347363,0.00012215,2]
[403118928,1769177438490,-268.23870658,0.00012215,2]
[403118936,1769177440300,-200.0,0.00012186,2]
[403118937,1769177440310,-33.7729119,0.00012215,2]
[403118938,1769177440319,-500.0,0.00012215,2]
[403118939,1769177440328,-500.0,0.00012215,2]
[403118940,1769177440338,-500.0,0.00012215,2]
[403118941,1769177440347,-500.0,0.00012215,2]
[403118942,1769177440358,-500.0,0.00012215,2]
[403118943,1769177440368,-500.0,0.00012215,2]
[403118944,1769177440378,-500.0,0.00012215,2]
[403118945,1769177440388,-500.0,0.00012215,2]
[403118946,1769177440398,-500.0,0.00012215,2]
[403118947,1769177440408,-60.91100727,0.00012215,2]
[403118948,1769177440419,-439.08899273,0.00012215,2]
[403118949,1769177440430,-500.0,0.00012215,2]
[403118950,1769177440440,-500.0,0.00012215,2]
[403118951,1769177440451,-500.0,0.00012215,2]
[403118952,1769177440460,-500.0,0.00012215,2]
[403118953,1769177440469,-500.0,0.00012215,2]
[403118954,1769177440478,-500.0,0.00012215,2]
[403118955,1769177440487,-500.0,0.00012215,2]
[403118956,1769177440497,-500.0,0.00012215,2]
[403118957,1769177440506,-123.36370925,0.00012215,2]
[403118972,1769177443254,-376.63629075,0.00012215,2]
[403118973,1769177443265,-500.0,0.00012215,2]
[403118974,1769177443276,-500.0,0.00012215,2]
[403118975,1769177443287,-425.04916837,0.00012215,2]
[403118976,1769177443312,-74.95083163,0.00012215,2]
[403118977,1769177443322,-500.0,0.00012215,2]
[403118978,1769177443332,-500.0,0.00012215,2]
[403118979,1769177443341,-500.0,0.00012215,2]
[403118980,1769177443351,-500.0,0.00012215,2]
[403118981,1769177443361,-500.0,0.00012215,2]
[403118982,1769177443371,-500.0,0.00012215,2]
[403118983,1769177443380,-138.04916836,0.00012215,2]
[403118987,1769177446130,-361.95083164,0.00012215,2]
[403118988,1769177446140,-500.0,0.00012215,2]
[403118989,1769177446149,-500.0,0.00012215,2]
[403118990,1769177446159,-500.0,0.00012215,2]
[403118991,1769177446169,-500.0,0.00012215,2]
[403118992,1769177446178,-500.0,0.00012215,2]
[403118993,1769177446187,-500.0,0.00012215,2]
[403118994,1769177446197,-500.0,0.00012215,2]
[403118995,1769177446207,-500.0,0.00012215,2]
[403118996,1769177446217,-500.0,0.00012215,2]
[403118997,1769177446231,-500.0,0.00012215,2]
[403118998,1769177446241,-500.0,0.00012215,2]
[403118999,1769177446251,-245.56235764,0.00012215,2]
[403119000,1769177446260,-500.0,0.00012215,2]
[403119001,1769177446271,-500.0,0.00012215,2]
[403119002,1769177446281,-500.0,0.00012215,2]
[403119003,1769177446292,-500.0,0.00012215,2]
[403119004,1769177446304,-500.0,0.00012215,2]
[403119005,1769177446314,-500.0,0.00012215,2]
[403119006,1769177446323,-500.0,0.00012215,2]
[403119007,1769177446332,-500.0,0.00012215,2]
[403119008,1769177446342,-500.0,0.00012215,2]
[403119009,1769177446352,-500.0,0.00012215,2]
[403119010,1769177446361,-500.0,0.00012215,2]
[403119011,1769177446371,-500.0,0.00012215,2]
[403119012,1769177446380,-500.0,0.00012215,2]
[403119013,1769177446390,-500.0,0.00012215,2]
[403119014,1769177446399,-500.0,0.00012215,2]
[403119015,1769177446408,-500.0,0.00012215,2]
[403119016,1769177446418,-500.0,0.00012215,2]
[403119017,1769177446427,-434.51626164,0.00012215,2]
[403119018,1769177446436,-500.0,0.00012215,2]
[403119019,1769177446445,-500.0,0.00012215,2]
[403119020,1769177446454,-500.0,0.00012215,2]
[403119021,1769177446464,-500.0,0.00012215,2]
[403119022,1769177446473,-500.0,0.00012215,2]
[403119023,1769177446483,-500.0,0.00012215,2]
[403119024,1769177446492,-500.0,0.00012215,2]
[403119025,1769177446501,-500.0,0.00012215,2]
[403119026,1769177446511,-500.0,0.00012215,2]
[403119027,1769177446521,-500.0,0.00012215,2]
[403119028,1769177446530,-500.0,0.00012215,2]
[403119029,1769177446539,-500.0,0.00012215,2]
[403119030,1769177446549,-500.0,0.00012215,2]
[403119031,1769177446558,-600.0,0.00012215,2]
[403119032,1769177446567,-500.0,0.00012215,2]
[403119033,1769177446576,-500.0,0.00012215,2]
[403119034,1769177446585,-500.0,0.00012215,2]
[403119035,1769177446594,-500.0,0.00012215,2]
[403119036,1769177446603,-500.0,0.00012215,2]
[403119037,1769177446612,-500.0,0.00012215,2]
[403119038,1769177446621,-500.0,0.00012215,2]
[403119039,1769177446631,-500.0,0.00012215,2]
[403119040,1769177446640,-500.0,0.00012215,2]
[403119041,1769177446649,-500.0,0.00012215,2]
[403119042,1769177446658,-500.0,0.00012215,2]
[403119043,1769177446667,-316.21,0.00012329,2]
[403119044,1769177446677,-263.5,0.00012329,2]
[403119045,1769177446687,-219.59,0.00012329,2]
[403119046,1769177446696,-300.0,0.00012466,2]
[403119047,1769177446705,-300.0,0.00012466,2]
[403119048,1769177446715,-300.0,0.00012466,2]
[403119049,1769177446724,-300.0,0.00012466,2]
[403119050,1769177446733,-300.0,0.00012466,2]
[403119051,1769177446742,-300.0,0.00012466,2]
[403119052,1769177446751,-300.0,0.00012466,2]
[403119053,1769177446761,-300.0,0.00012466,2]
[403119054,1769177446770,-300.0,0.00012466,2]
[403119055,1769177446779,-300.0,0.00012466,2]
[403119056,1769177446789,-300.0,0.00012466,2]
[403119057,1769177446798,-300.0,0.00012466,2]
[403119058,1769177446807,-300.0,0.00012466,2]
[403119059,1769177446817,-300.0,0.00012466,2]
[403119060,1769177446827,-300.0,0.00012466,2]
[403119061,1769177446836,-600.0,0.00012466,2]
[403119062,1769177446846,-629.0,0.0001313,2]
[403119063,1769177446855,-1368.0,0.0001313,2]
[403119064,1769177446864,-2149.0,0.0001313,2]
[403119065,1769177446873,-359.12487293,0.00013152,2]
[403119066,1769177446882,-241.63169599,0.00013159,2]
[403119067,1769177446892,-500.0,0.00013273,2]
[403119068,1769177446902,-150.0,0.00013306,2]
[403119069,1769177446911,-150.0,0.00013306,2]
[403119070,1769177446921,-250.0,0.00013381,2]
[403119071,1769177446930,-420.0,0.00013406,2]
[403119072,1769177446940,-420.0,0.00013406,2]
[403119073,1769177446949,-959.30389871,0.00013436,2]
[403119074,1769177446961,-240.69610129,0.00013436,2]
[403119075,1769177446970,-438.05358771,0.00013699,2]
[403119078,1769177462580,989.45881086,0.0001198,2]
[403119079,1769177462605,4010.54118914,0.0001198,2]
[403119080,1769177484814,5000.0,0.0001198,2]
[403119083,1769177507481,989.46881086,0.0001198,2]
[403119084,1769177507506,2921.06343974,0.0001198,2]
[403119164,1769177839471,3077.33768194,0.00011985,2]
[403119168,1769177841350,1261.0563028,0.0001128,2]
[403119207,1769177908796,1205.0,0.0001198,2]
[403119214,1769177969252,197.5315497,0.00011985,2]
[403119215,1769177976963,1386.74419406,0.00011985,2]
[403119225,1769178050163,2872.3402715,0.00011985,2]
[403119226,1769178050189,2127.6597285,0.00011985,2]
[403119231,1769178073487,3050.43244963,0.00011985,2]
[403119254,1769178290835,451.3,7.651e-05,2]
[403119255,1769178291233,902.6,8.347e-05,2]
[403119256,1769178291624,1353.89,9.042e-05,2]
[403119257,1769178292018,1805.19,9.738e-05,2]
[403119258,1769178292467,2256.49,0.00010433,2]
[403119259,1769178292886,2707.79,0.00011129,2]
[403119260,1769178293821,522.75,0.00011824,2]
[403119261,1769178293882,2636.34,0.00011824,2]
[403119267,1769178368579,290.47,7.612e-05,2]
[403119268,1769178368987,580.94,8.304e-05,2]
[403119269,1769178369381,871.42,8.997e-05,2]